[Event "Turkish Championship 2023"]
[Site "Kemer Antalya"]
[Date "2023.12.06"]
[Round "5"]
[White "Isik, Alparslan"]
[Black "Tuncer, Ufuk"]
[Result "1-0"]
[ECO "E97"]
[WhiteElo "2452"]
[BlackElo "2360"]
[Annotator "RC"]
[PlyCount "63"]
[EventDate "2023.12.01"]
[EventType "tourn"]
[EventCountry "TUR"]
[SourceTitle "playchess.com"]
[Source "ChessBase"]
[SourceQuality "1"]
[TimeControl "40/5400+30:1800+30"]

1. d4 Nf6 2. c4 g6 3. Nc3 Bg7 4. e4 d6 5. Be2 O-O 6. Nf3 e5 7. O-O Nc6 8. d5 Ne7 9. b4 Nh5 10. Re1 f5 11. a4 Nf6 12. a5 fxe4 13. Ng5 Nf5 14. Ngxe4 Nxe4 15. Nxe4 Nd4 16. Bg5 Qe8 17. Bd3 Qf7 18. Ra2 Bf5 19. Be3 Qd7 20. Ng5 Bf6 21. Ne4 Bg7 22. a6 b6 23. Bxd4 exd4 24. Ng5 Rae8 25. Bxf5 {[%emt 1:40:19]} Qxf5 {[%emt 1:22:00]} 26. Ne6 {[%emt 0:00:30]} Rf7 {[%emt 0:00:30]} 27. b5 {[%emt 0:00:30]} Rfe7 {[%emt 0:00:30]} 28. Rae2 {[%emt 0:00:30]} d3 {[%emt 0:00:30]} 29. Re3 {[%emt 0:00:30]} Bc3 {[%emt 0:00:30]} 30. Rf1 {[%emt 0:00:30]} Bb4 {[%emt 0:00:30]} 31. Qxd3 {[%emt 0:00:30]} Qf6 {[%emt 0:00:30]} 32. Nxc7 {[%emt 0:00:30]} 1-0

[Event "Turkish Championship 2023"]
[Site "Kemer Antalya"]
[Date "2023.12.06"]
[Round "5"]
[White "Tarhan, Adar"]
[Black "Yilmazyerli, Mert"]
[Result "1-0"]
[ECO "B90"]
[WhiteElo "2434"]
[BlackElo "2524"]
[Annotator "RC"]
[PlyCount "67"]
[EventDate "2023.12.01"]
[EventType "tourn"]
[EventCountry "TUR"]
[SourceTitle "playchess.com"]
[Source "ChessBase"]
[SourceQuality "1"]
[TimeControl "40/5400+30:1800+30"]

1. e4 {[%emt 0:01:00]} c5 {[%emt 0:03:00]} 2. Nf3 {[%emt 0:00:00]} d6 {[%emt 0:00:30]} 3. d4 {[%emt 0:00:00]} cxd4 {[%emt 0:00:30]} 4. Nxd4 {[%emt 0:00:00]} Nf6 {[%emt 0:00:00]} 5. Nc3 {[%emt 0:00:00]} a6 {[%emt 0:00:00]} 6. h3 {[%emt 0:02:30]} e5 {[%emt 0:03:30]} 7. Nb3 {[%emt 0:00:30]} Be6 {[%emt 0:01:30]} 8. f4 {[%emt 0:00:00]} Nc6 {[%emt 0:04:30]} 9. f5 {[%emt 0:00:00]} Bxb3 {[%emt 0:00:30]} 10. axb3 {[%emt 0:00:30]} d5 {[%emt 0:00:30]} 11. exd5 {[%emt 0:05:30]} Nd4 {[%emt 0:01:30]} 12. Bd3 {[%emt 0:02:30]} e4 {[%emt 0:16:30]} 13. Bxe4 {[%emt 0:18:30]} Bc5 {[%emt 0:10:30]} 14. Qd3 {[%emt 0:06:30]} O-O {[%emt 0:11:30]} 15. Bg5 {[%emt 0:00:30]} Rc8 {[%emt 0:02:30]} 16. O-O-O {[%emt 0:01:30]} b5 {[%emt 0:16:30]} 17. Kb1 {[%emt 0:02:30]} h6 {[%emt 0:04:30]} 18. Bh4 {[%emt 0:09:30]} Bb6 {[%emt 0:01:30]} 19. Bf2 {[%emt 0:05:30]} Ne2 {[%emt 0:00:59]} 20. Qxe2 {[%emt 0:02:30]} Bxf2 {[%emt 0:00:30]} 21. Qxf2 {[%emt 0:00:00]} b4 {[%emt 0:00:01]} 22. Na2 {[%emt 0:02:00]} Nxe4 {[%emt 0:00:30]} 23. Qf4 {[%emt 0:00:00]} Nf6 {[%emt 0:03:30]} 24. Nxb4 {[%emt 0:00:00]} Qb6 {[%emt 0:00:34]} 25. d6 {[%emt 0:07:30]} Rfd8 {[%emt 0:01:37]} 26. Nd5 {[%emt 0:00:30]} Nxd5 {[%emt 0:00:25]} 27. Rxd5 {[%emt 0:00:00]} Qc6 {[%emt 0:00:35]} 28. Rd2 {[%emt 0:00:00]} Rd7 {[%emt 0:00:12]} 29. f6 {[%emt 0:01:30]} g5 {[%emt 0:00:32]} 30. Qg4 {[%emt 0:00:30]} Rcd8 {[%emt 0:01:58]} 31. h4 {[%emt 0:00:30]} Qc5 {[%emt 0:00:00]} 32. hxg5 {[%emt 0:00:30]} Qxg5 {[%emt 0:00:17]} 33. Qxg5+ {[%emt 0:00:30]} hxg5 {[%emt 0:00:30]} 34. Rd5 {[%emt 0:00:00]} 1-0

[Event "Turkish Championship 2023"]
[Site "Kemer Antalya"]
[Date "2023.12.06"]
[Round "5"]
[White "Eren, Ataberk"]
[Black "Tirpan, Ceren"]
[Result "1-0"]
[ECO "A45"]
[WhiteElo "2429"]
[BlackElo "1940"]
[Annotator "RC"]
[PlyCount "45"]
[EventDate "2023.12.01"]
[EventType "tourn"]
[EventCountry "TUR"]
[SourceTitle "playchess.com"]
[Source "ChessBase"]
[SourceQuality "1"]
[TimeControl "40/5400+30:1800+30"]

1. d4 {[%emt 0:01:00]} Nf6 {[%emt 0:01:00]} 2. Bf4 {[%emt 0:02:30]} e6 {[%emt 0:00:30]} 3. e3 {[%emt 0:00:00]} b6 {[%emt 0:00:30]} 4. Qf3 {[%emt 0:00:00]} Nc6 {[%emt 0:00:30]} 5. Nc3 {[%emt 0:00:30]} Bb7 {[%emt 0:01:30]} 6. O-O-O {[%emt 0:00:00]} Bb4 {[%emt 0:09:30]} 7. Nge2 {[%emt 0:00:00]} Na5 {[%emt 0:02:30]} 8. e4 {[%emt 0:00:30]} d5 {[%emt 0:03:30]} 9. e5 {[%emt 0:01:30]} Nd7 {[%emt 0:00:30]} 10. Qg3 {[%emt 0:01:30]} Bf8 {[%emt 0:17:30]} 11. Bg5 {[%emt 0:02:30]} Qc8 {[%emt 0:09:30]} 12. f4 {[%emt 0:00:30]} g6 {[%emt 0:02:30]} 13. Qh3 {[%emt 0:03:30]} c5 {[%emt 0:10:30]} 14. g4 {[%emt 0:01:30]} Qc6 {[%emt 0:11:30]} 15. f5 {[%emt 0:01:30]} gxf5 {[%emt 0:00:30]} 16. gxf5 {[%emt 0:01:30]} Rg8 {[%emt 0:00:30]} 17. Qh5 {[%emt 0:03:30]} exf5 {[%emt 0:07:42]} 18. Nf4 {[%emt 0:01:30]} Rxg5 {[%emt 0:03:01]} 19. Qxg5 {[%emt 0:03:30]} Bh6 {[%emt 0:00:06]} 20. Qh4 {[%emt 0:00:30]} Bxf4+ {[%emt 0:03:53]} 21. Qxf4 {[%emt 0:00:30]} O-O-O {[%emt 0:00:00]} 22. e6 {[%emt 0:03:30]} fxe6 {[%emt 0:05:11]} 23. Nb5 {[%emt 0:00:30]} 1-0

[Event "Turkish Championship 2023"]
[Site "Kemer Antalya"]
[Date "2023.12.06"]
[Round "5"]
[White "Taspinar, Yanki"]
[Black "Bicer, Atakan Mert"]
[Result "1/2-1/2"]
[ECO "B10"]
[WhiteElo "2318"]
[BlackElo "2318"]
[Annotator "RC"]
[PlyCount "193"]
[EventDate "2023.12.01"]
[EventType "tourn"]
[EventCountry "TUR"]
[SourceTitle "playchess.com"]
[Source "ChessBase"]
[SourceQuality "1"]
[TimeControl "40/5400+30:1800+30"]

1. e4 c6 2. Nf3 d5 3. d3 dxe4 4. dxe4 Qxd1+ 5. Kxd1 Nf6 6. Nbd2 a5 7. a4 Nbd7 8. Ne1 Nc5 9. f3 e5 10. Nc4 Nfd7 11. Be3 f6 12. Nd3 Kd8 13. Nb6 Nxb6 14. Nxc5 Kc7 15. Bd3 Bxc5 16. Bxc5 Be6 17. Ke2 Nc8 18. Be3 b6 19. Kf2 Nd6 20. b3 Rhd8 21. Be2 h5 22. h4 Rd7 23. Rhb1 g6 {[%emt 1:26:15]} 24. Bd3 {[%emt 1:26:18]} Nf7 {[%emt 0:00:30]} 25. Rb2 {[%emt 0:00:30]} Rdd8 {[%emt 0:03:52]} 26. Rab1 {[%emt 0:01:22]} Rdb8 {[%emt 0:00:32]} 27. Kg1 {[%emt 0:03:16]} Nd6 {[%emt 0:01:06]} 28. f4 {[%emt 0:06:25]} Nf7 {[%emt 0:00:21]} 29. g3 {[%emt 0:03:47]} c5 {[%emt 0:01:35]} 30. Rf1 {[%emt 0:00:05]} Rf8 {[%emt 0:00:21]} 31. Bd2 {[%emt 0:02:35]} exf4 {[%emt 0:02:51]} 32. gxf4 {[%emt 0:01:02]} f5 {[%emt 0:02:09]} 33. e5 {[%emt 0:01:06]} Rad8 {[%emt 0:00:19]} 34. Rbb1 {[%emt 0:00:30]} Nh6 {[%emt 0:01:09]} 35. Bc3 {[%emt 0:00:23]} Ng8 {[%emt 0:02:13]} 36. Rf2 {[%emt 0:00:36]} Ne7 {[%emt 0:00:28]} 37. Rg2 {[%emt 0:00:24]} Bd5 {[%emt 0:01:15]} 38. Re2 {[%emt 0:00:37]} Be6 {[%emt 0:01:18]} 39. Bd2 {[%emt 0:00:30]} Nc6 {[%emt 0:01:02]} 40. Rg2 {[%emt 0:00:00]} Rg8 {[%emt 0:00:00]} 41. Rg3 {[%emt 0:06:34]} Kd7 {[%emt 0:06:44]} 42. Kf2 {[%emt 0:03:30]} Ke7 {[%emt 0:00:00]} 43. Bc3 {[%emt 0:01:30]} Kf7 {[%emt 0:00:00]} 44. Ke3 {[%emt 0:00:30]} Ne7 {[%emt 0:00:30]} 45. Ke2 {[%emt 0:01:31]} Nc6 {[%emt 0:04:30]} 46. Rbg1 {[%emt 0:02:14]} Ne7 {[%emt 0:01:30]} 47. Rd1 {[%emt 0:01:14]} Rd7 {[%emt 0:00:30]} 48. Rf1 {[%emt 0:01:04]} Rdd8 {[%emt 0:00:30]} 49. Bb5 {[%emt 0:03:53]} Nd5 {[%emt 0:01:30]} 50. Bd2 {[%emt 0:01:12]} Nc7 {[%emt 0:00:30]} 51. Bd3 {[%emt 0:00:01]} Bd5 {[%emt 0:01:30]} 52. Rfg1 {[%emt 0:06:04]} Ne6 {[%emt 0:00:30]} 53. Be3 {[%emt 0:01:17]} Nc7 {[%emt 0:01:30]} 54. Rb1 {[%emt 0:03:28]} Ne6 {[%emt 0:00:30]} 55. Bc4 {[%emt 0:02:47]} Nc7 {[%emt 0:05:42]} 56. Rgg1 {[%emt 0:00:45]} Be6 {[%emt 0:00:32]} 57. Rgd1 {[%emt 0:00:55]} Ke7 {[%emt 0:00:32]} 58. Rxd8 {[%emt 0:01:28]} Rxd8 {[%emt 0:00:06]} 59. Rg1 {[%emt 0:00:00]} Bf7 {[%emt 0:00:57]} 60. Bd3 {[%emt 0:00:31]} Rg8 {[%emt 0:01:06]} 61. Rb1 {[%emt 0:00:21]} Ra8 {[%emt 0:00:39]} 62. Bd2 {[%emt 0:00:16]} Bd5 {[%emt 0:00:16]} 63. Rg1 {[%emt 0:00:34]} Kf7 {[%emt 0:00:13]} 64. Be3 {[%emt 0:00:00]} Ne6 {[%emt 0:00:19]} 65. Rd1 {[%emt 0:01:27]} Rd8 {[%emt 0:00:15]} 66. Rc1 {[%emt 0:00:00]} Bc6 {[%emt 0:03:12]} 67. Bc4 {[%emt 0:00:00]} Bd5 {[%emt 0:00:05]} 68. Rb1 {[%emt 0:01:17]} Be4 {[%emt 0:00:34]} 69. Rb2 {[%emt 0:00:18]} Ke7 {[%emt 0:01:01]} 70. c3 {[%emt 0:00:47]} Bc6 {[%emt 0:02:12]} 71. Rb1 {[%emt 0:00:19]} Be4 {[%emt 0:01:28]} 72. Rg1 {[%emt 0:00:12]} Nf8 {[%emt 0:00:04]} 73. Bc1 {[%emt 0:01:00]} Bd5 {[%emt 0:00:15]} 74. Bxd5 {[%emt 0:00:32]} Rxd5 {[%emt 0:00:06]} 75. Be3 {[%emt 0:00:15]} Kf7 {[%emt 0:00:41]} 76. b4 {[%emt 0:00:46]} axb4 {[%emt 0:04:51]} 77. cxb4 {[%emt 0:00:04]} cxb4 {[%emt 0:01:47]} 78. Rb1 {[%emt 0:00:52]} Nd7 {[%emt 0:01:29]} 79. Rxb4 {[%emt 0:00:02]} Ra5 {[%emt 0:00:00]} 80. Kd2 {[%emt 0:01:01]} Nc5 {[%emt 0:01:10]} 81. Bxc5 {[%emt 0:00:31]} bxc5 {[%emt 0:00:06]} 82. Rc4 {[%emt 0:00:29]} Ke6 {[%emt 0:00:33]} 83. Kc3 {[%emt 0:00:22]} Kd5 {[%emt 0:00:17]} 84. Kb3 {[%emt 0:00:27]} Ra6 {[%emt 0:00:14]} 85. Rc1 {[%emt 0:00:22]} Rb6+ {[%emt 0:01:03]} 86. Kc3 {[%emt 0:00:01]} Rb4 {[%emt 0:00:21]} 87. Rd1+ {[%emt 0:00:38]} Ke6 {[%emt 0:00:29]} 88. Ra1 {[%emt 0:01:05]} Rxf4 {[%emt 0:01:20]} 89. a5 {[%emt 0:00:03]} Rd4 {[%emt 0:00:00]} 90. a6 {[%emt 0:01:01]} Rd8 {[%emt 0:00:02]} 91. Kc4 {[%emt 0:00:05]} Kxe5 {[%emt 0:00:23]} 92. Re1+ {[%emt 0:00:53]} Kf4 {[%emt 0:01:25]} 93. Rg1 {[%emt 0:00:23]} Ke3 {[%emt 0:01:08]} 94. Rxg6 {[%emt 0:00:23]} f4 {[%emt 0:00:10]} 95. Re6+ {[%emt 0:00:39]} Kd2 {[%emt 0:00:36]} 96. Kxc5 {[%emt 0:00:38]} f3 {[%emt 0:00:30]} 97. Rd6+ {[%emt 0:00:32]} 1/2-1/2

[Event "Turkish Championship 2023"]
[Site "Kemer Antalya"]
[Date "2023.12.06"]
[Round "5"]
[White "Metin, Enis"]
[Black "Gunduz, Umut Erdem"]
[Result "1/2-1/2"]
[ECO "E10"]
[WhiteElo "2031"]
[BlackElo "2318"]
[Annotator "RC"]
[PlyCount "114"]
[EventDate "2023.12.01"]
[EventType "tourn"]
[EventCountry "TUR"]
[SourceTitle "playchess.com"]
[Source "ChessBase"]
[SourceQuality "1"]
[TimeControl "40/5400+30:1800+30"]

1. d4 Nf6 2. c4 c5 3. d5 e6 4. Nf3 d6 5. h3 exd5 6. cxd5 g6 7. e4 a6 8. Bd3 Bg7 9. O-O O-O 10. Nbd2 b5 11. a4 c4 12. Bc2 Bb7 13. Nd4 Qb6 14. N2f3 Nbd7 15. Be3 Nc5 16. b4 cxb3 17. Nxb3 Nfd7 18. Nfd4 Ne5 19. Nxc5 dxc5 20. Nb3 Rac8 21. axb5 axb5 22. Na5 Ra8 23. Qd2 b4 24. Nxb7 Rxa1 25. Rxa1 Nc4 26. Bxc5 Nxd2 27. Bxb6 Bxa1 28. d6 Rb8 29. d7 Bf6 30. e5 Be7 31. Bc5 {[%emt 1:36:19]} Bxc5 {[%emt 1:20:00]} 32. Nxc5 {[%emt 0:02:08]} Kf8 {[%emt 0:00:30]} 33. Na6 {[%emt 0:00:30]} Rd8 {[%emt 0:00:30]} 34. Nxb4 {[%emt 0:00:30]} Rxd7 {[%emt 0:00:30]} 35. Nd3 {[%emt 0:00:30]} Rc7 {[%emt 0:02:30]} 36. Ne1 {[%emt 0:00:30]} Nc4 {[%emt 0:00:30]} 37. f4 {[%emt 0:00:47]} Ne3 {[%emt 0:00:30]} 38. Bd3 {[%emt 0:02:02]} Rc1 {[%emt 0:00:30]} 39. Kf2 {[%emt 0:01:02]} Rxe1 {[%emt 0:00:30]} 40. Kxe1 {[%emt 0:01:50]} Nxg2+ {[%emt 0:00:00]} 41. Kf2 {[%emt 0:00:52]} Nxf4 {[%emt 0:00:00]} 42. Bf1 {[%emt 0:00:00]} Ke7 {[%emt 0:07:30]} 43. Kf3 {[%emt 0:00:00]} Ne6 {[%emt 0:00:30]} 44. Bc4 {[%emt 0:03:30]} Kd7 {[%emt 0:05:30]} 45. Bb5+ {[%emt 0:01:30]} Kd8 {[%emt 0:01:30]} 46. Ba4 {[%emt 0:00:30]} Ke7 {[%emt 0:00:00]} 47. h4 {[%emt 0:05:30]} Nc5 {[%emt 0:02:00]} 48. Bb5 {[%emt 0:00:30]} Ke6 {[%emt 0:02:30]} 49. Bc4+ {[%emt 0:07:20]} Ke7 {[%emt 0:01:30]} 50. Bb5 {[%emt 0:01:01]} h5 {[%emt 0:01:30]} 51. Ke3 {[%emt 0:04:43]} Ne6 {[%emt 0:00:30]} 52. Bc4 {[%emt 0:00:12]} Ng7 {[%emt 0:04:30]} 53. Kf4 {[%emt 0:00:23]} Nf5 {[%emt 0:00:30]} 54. Kg5 {[%emt 0:00:01]} Nd4 {[%emt 0:00:30]} 55. Kf4 {[%emt 0:00:20]} Nf5 {[%emt 0:01:30]} 56. Kg5 {[%emt 0:00:05]} Ne3 {[%emt 0:00:00]} 57. Bb3 {[%emt 0:05:05]} Nf5 {[%emt 0:07:00]} 1/2-1/2

[Event "Turkish Championship 2023"]
[Site "Kemer Antalya"]
[Date "2023.12.07"]
[Round "6"]
[White "Yilmazyerli, Mert"]
[Black "Isik, Alparslan"]
[Result "1/2-1/2"]
[ECO "D85"]
[WhiteElo "2524"]
[BlackElo "2452"]
[Annotator "RC"]
[PlyCount "30"]
[EventDate "2023.12.01"]
[EventType "tourn"]
[EventCountry "TUR"]
[SourceTitle "playchess.com"]
[Source "ChessBase"]
[SourceQuality "1"]
[TimeControl "40/5400+30:1800+30"]

1. c4 {[%emt 0:01:00]} Nf6 {[%emt 0:02:00]} 2. Nc3 {[%emt 0:00:30]} g6 {[%emt 0:00:30]} 3. d4 {[%emt 0:00:30]} d5 {[%emt 0:00:30]} 4. cxd5 {[%emt 0:00:00]} Nxd5 {[%emt 0:00:30]} 5. e4 {[%emt 0:00:00]} Nxc3 {[%emt 0:00:30]} 6. bxc3 {[%emt 0:00:00]} Bg7 {[%emt 0:00:00]} 7. Be3 {[%emt 0:00:00]} c5 {[%emt 0:00:00]} 8. Nf3 {[%emt 0:00:00]} Qa5 {[%emt 0:00:30]} 9. Nd2 {[%emt 0:00:00]} O-O {[%emt 0:00:00]} 10. Nb3 {[%emt 0:00:00]} Qxc3+ {[%emt 0:00:00]} 11. Bd2 {[%emt 0:00:00]} Qb2 {[%emt 0:00:00]} 12. Bc1 {[%emt 0:00:30]} Qc3+ {[%emt 0:00:00]} 13. Bd2 {[%emt 0:00:30]} Qb2 {[%emt 0:00:30]} 14. Bc1 {[%emt 0:00:30]} Qc3+ {[%emt 0:00:30]} 15. Bd2 {[%emt 0:00:00]} Qb2 {[%emt 0:00:00]} 1/2-1/2

[Event "Turkish Championship 2023"]
[Site "Kemer Antalya"]
[Date "2023.12.07"]
[Round "6"]
[White "Eren, Ataberk"]
[Black "Taspinar, Yanki"]
[Result "1/2-1/2"]
[ECO "D37"]
[WhiteElo "2429"]
[BlackElo "2318"]
[Annotator "RC"]
[PlyCount "93"]
[EventDate "2023.12.01"]
[EventType "tourn"]
[EventCountry "TUR"]
[SourceTitle "playchess.com"]
[Source "ChessBase"]
[SourceQuality "1"]
[TimeControl "40/5400+30:1800+30"]

1. d4 {[%emt 0:03:00]} d5 {[%emt 0:01:00]} 2. Nf3 {[%emt 0:00:30]} Nf6 {[%emt 0:00:30]} 3. c4 {[%emt 0:00:30]} e6 {[%emt 0:00:30]} 4. Nc3 {[%emt 0:00:00]} a6 {[%emt 0:00:00]} 5. c5 {[%emt 0:00:00]} b6 {[%emt 0:00:00]} 6. cxb6 {[%emt 0:00:00]} c5 {[%emt 0:00:30]} 7. Bf4 {[%emt 0:00:00]} Bd6 {[%emt 0:00:00]} 8. Bxd6 {[%emt 0:03:30]} Qxd6 {[%emt 0:00:00]} 9. dxc5 {[%emt 0:01:30]} Qxc5 {[%emt 0:00:00]} 10. Rc1 {[%emt 0:01:30]} Nbd7 {[%emt 0:06:00]} 11. e3 {[%emt 0:07:30]} Qxb6 {[%emt 0:07:30]} 12. Qd2 {[%emt 0:00:30]} O-O {[%emt 0:03:30]} 13. Be2 {[%emt 0:02:30]} Bb7 {[%emt 0:20:30]} 14. O-O {[%emt 0:00:30]} Rfc8 {[%emt 0:03:30]} 15. Na4 {[%emt 0:02:30]} Qd6 {[%emt 0:01:30]} 16. Qa5 {[%emt 0:03:30]} Ne4 {[%emt 0:14:30]} 17. Rfd1 {[%emt 0:01:30]} Nec5 {[%emt 0:04:30]} 18. Nd4 {[%emt 0:07:30]} Nxa4 {[%emt 0:03:30]} 19. Qxa4 {[%emt 0:00:00]} Rc7 {[%emt 0:06:30]} 20. Rxc7 {[%emt 0:10:00]} Qxc7 {[%emt 0:00:00]} 21. Nb3 {[%emt 0:00:30]} a5 {[%emt 0:10:52]} 22. Rc1 {[%emt 0:01:30]} Qd8 {[%emt 0:00:47]} 23. Bb5 {[%emt 0:03:30]} Nf6 {[%emt 0:03:00]} 24. Qf4 {[%emt 0:08:30]} Ba6 {[%emt 0:10:03]} 25. Bxa6 {[%emt 0:16:30]} Rxa6 {[%emt 0:00:05]} 26. Qa4 {[%emt 0:03:30]} h5 {[%emt 0:03:38]} 27. f3 {[%emt 0:04:45]} Nd7 {[%emt 0:00:40]} 28. Nd4 {[%emt 0:02:40]} Ra8 {[%emt 0:00:50]} 29. Qc2 {[%emt 0:10:14]} Ne5 {[%emt 0:00:30]} 30. h3 {[%emt 0:02:43]} a4 {[%emt 0:00:27]} 31. b3 {[%emt 0:01:30]} axb3 {[%emt 0:00:04]} 32. axb3 {[%emt 0:00:01]} Qf6 {[%emt 0:00:59]} 33. f4 {[%emt 0:03:11]} Ng6 {[%emt 0:00:01]} 34. Rf1 {[%emt 0:00:00]} Qe7 {[%emt 0:00:55]} 35. Qe2 {[%emt 0:01:02]} h4 {[%emt 0:00:26]} 36. Qg4 {[%emt 0:00:59]} Ra2 {[%emt 0:00:27]} 37. Rc1 {[%emt 0:00:29]} Ra8 {[%emt 0:00:35]} 38. Kh1 {[%emt 0:00:21]} Re8 {[%emt 0:00:36]} 39. Rf1 {[%emt 0:00:33]} Ra8 {[%emt 0:00:33]} 40. Qh5 {[%emt 0:00:00]} Nf8 {[%emt 0:00:00]} 41. Rb1 {[%emt 0:08:02]} g6 {[%emt 0:15:56]} 42. Qe2 {[%emt 0:00:30]} Qb4 {[%emt 0:01:10]} 43. Qf2 {[%emt 0:01:30]} Qc3 {[%emt 0:08:51]} 44. b4 {[%emt 0:02:30]} Nd7 {[%emt 0:00:04]} 45. b5 {[%emt 0:00:30]} Nb6 {[%emt 0:01:51]} 46. Nc6 {[%emt 0:07:37]} Qd3 {[%emt 0:02:20]} 47. Rc1 {[%emt 0:10:46]} 1/2-1/2

[Event "Turkish Championship 2023"]
[Site "Kemer Antalya"]
[Date "2023.12.07"]
[Round "6"]
[White "Tuncer, Ufuk"]
[Black "Metin, Enis"]
[Result "1/2-1/2"]
[ECO "B51"]
[WhiteElo "2360"]
[BlackElo "2031"]
[Annotator "RC"]
[PlyCount "92"]
[EventDate "2023.12.01"]
[EventType "tourn"]
[EventCountry "TUR"]
[SourceTitle "playchess.com"]
[Source "ChessBase"]
[SourceQuality "1"]
[TimeControl "40/5400+30:1800+30"]

1. e4 {[%emt 0:01:00]} c5 {[%emt 0:01:00]} 2. Nc3 {[%emt 0:01:30]} Nc6 {[%emt 0:00:30]} 3. Bb5 {[%emt 0:00:30]} d6 {[%emt 0:00:00]} 4. Nf3 {[%emt 0:00:30]} e5 {[%emt 0:00:00]} 5. d3 {[%emt 0:00:30]} Be7 {[%emt 0:00:30]} 6. Nd2 {[%emt 0:02:30]} Nf6 {[%emt 0:02:30]} 7. Nf1 {[%emt 0:00:00]} O-O {[%emt 0:04:30]} 8. Ne3 {[%emt 0:00:00]} a6 {[%emt 0:03:30]} 9. Bc4 {[%emt 0:04:30]} b5 {[%emt 0:01:30]} 10. Bd5 {[%emt 0:00:30]} Nxd5 {[%emt 0:01:30]} 11. Ncxd5 {[%emt 0:00:00]} g6 {[%emt 0:16:30]} 12. a4 {[%emt 0:07:00]} Be6 {[%emt 0:09:30]} 13. O-O {[%emt 0:03:30]} Bg5 {[%emt 0:08:30]} 14. axb5 {[%emt 0:07:30]} axb5 {[%emt 0:00:30]} 15. Rxa8 {[%emt 0:01:30]} Qxa8 {[%emt 0:00:00]} 16. Nc7 {[%emt 0:00:00]} Qb7 {[%emt 0:01:00]} 17. Nxe6 {[%emt 0:07:00]} fxe6 {[%emt 0:00:30]} 18. Qg4 {[%emt 0:06:30]} Bxe3 {[%emt 0:06:30]} 19. Qxe6+ {[%emt 0:00:30]} Qf7 {[%emt 0:00:30]} 20. Qxf7+ {[%emt 0:00:00]} Rxf7 {[%emt 0:00:30]} 21. Bxe3 {[%emt 0:00:00]} Nb4 {[%emt 0:10:30]} 22. Rc1 {[%emt 0:02:30]} Ra7 {[%emt 0:00:30]} 23. Bd2 {[%emt 0:00:30]} Nc6 {[%emt 0:00:00]} 24. c3 {[%emt 0:08:30]} Ra2 {[%emt 0:02:00]} 25. Rb1 {[%emt 0:00:30]} c4 {[%emt 0:05:30]} 26. dxc4 {[%emt 0:01:30]} bxc4 {[%emt 0:00:30]} 27. g4 {[%emt 0:03:30]} Kf7 {[%emt 0:00:30]} 28. Kg2 {[%emt 0:01:30]} Ke6 {[%emt 0:00:30]} 29. Be3 {[%emt 0:00:30]} Na5 {[%emt 0:01:30]} 30. Kg3 {[%emt 0:03:30]} Nb3 {[%emt 0:01:30]} 31. Kh4 {[%emt 0:01:30]} Kf6 {[%emt 0:03:43]} 32. h3 {[%emt 0:11:30]} Na5 {[%emt 0:08:31]} 33. f4 {[%emt 0:13:28]} exf4 {[%emt 0:02:03]} 34. Bxf4 {[%emt 0:00:05]} Nb7 {[%emt 0:00:02]} 35. Rd1 {[%emt 0:02:11]} Rxb2 {[%emt 0:01:10]} 36. Bxd6 {[%emt 0:00:07]} Nxd6 {[%emt 0:02:21]} 37. Rxd6+ {[%emt 0:00:01]} Ke5 {[%emt 0:00:00]} 38. Rc6 {[%emt 0:01:28]} Re2 {[%emt 0:00:47]} 39. Rxc4 {[%emt 0:00:10]} Re3 {[%emt 0:00:00]} 40. Kg5 {[%emt 0:00:00]} Rxh3 {[%emt 0:00:00]} 41. Rc5+ {[%emt 0:13:00]} Kxe4 {[%emt 0:00:53]} 42. Kf6 {[%emt 0:00:30]} Rf3+ {[%emt 0:02:30]} 43. Ke6 {[%emt 0:05:30]} h5 {[%emt 0:06:30]} 44. gxh5 {[%emt 0:15:43]} gxh5 {[%emt 0:00:30]} 45. c4 {[%emt 0:01:14]} Kd4 {[%emt 0:00:00]} 46. Rxh5 {[%emt 0:01:53]} Kxc4 {[%emt 0:00:00]} 1/2-1/2

[Event "Turkish Championship 2023"]
[Site "Kemer Antalya"]
[Date "2023.12.07"]
[Round "6"]
[White "Bicer, Atakan Mert"]
[Black "Tarhan, Adar"]
[Result "1-0"]
[ECO "C70"]
[WhiteElo "2318"]
[BlackElo "2434"]
[Annotator "RC"]
[PlyCount "69"]
[EventDate "2023.12.01"]
[EventType "tourn"]
[EventCountry "TUR"]
[SourceTitle "playchess.com"]
[Source "ChessBase"]
[SourceQuality "1"]
[TimeControl "40/5400+30:1800+30"]

1. e4 {[%emt 0:01:00]} e5 {[%emt 0:01:00]} 2. Nf3 {[%emt 0:00:30]} Nc6 {[%emt 0:00:30]} 3. Bb5 {[%emt 0:00:00]} a6 {[%emt 0:02:30]} 4. Ba4 {[%emt 0:00:00]} Nge7 {[%emt 0:00:00]} 5. Nc3 {[%emt 0:02:30]} g6 {[%emt 0:01:00]} 6. d4 {[%emt 0:00:30]} exd4 {[%emt 0:00:30]} 7. Nd5 {[%emt 0:01:30]} Nxd5 {[%emt 0:00:30]} 8. exd5 {[%emt 0:00:30]} Qe7+ {[%emt 0:00:30]} 9. Kf1 {[%emt 0:01:30]} Ne5 {[%emt 0:08:30]} 10. Nxe5 {[%emt 0:16:30]} Qxe5 {[%emt 0:00:30]} 11. Qf3 {[%emt 0:00:00]} d3 {[%emt 0:06:30]} 12. cxd3 {[%emt 0:08:00]} Be7 {[%emt 0:11:30]} 13. Bh6 {[%emt 0:14:30]} Qf6 {[%emt 0:00:30]} 14. Qe4 {[%emt 0:00:30]} Qh4 {[%emt 0:05:30]} 15. Qe3 {[%emt 0:02:30]} Kd8 {[%emt 0:04:30]} 16. d6 {[%emt 0:10:30]} cxd6 {[%emt 0:00:30]} 17. Re1 {[%emt 0:04:30]} Kc7 {[%emt 0:00:30]} 18. Rc1+ {[%emt 0:06:30]} Kb8 {[%emt 0:00:30]} 19. Rc4 {[%emt 0:00:30]} Qf6 {[%emt 0:04:30]} 20. Rf4 {[%emt 0:02:30]} Qe6 {[%emt 0:00:30]} 21. Re4 {[%emt 0:00:00]} Qxa2 {[%emt 0:00:00]} 22. Qd4 {[%emt 0:00:00]} Re8 {[%emt 0:01:00]} 23. Bf4 {[%emt 0:00:30]} Qb1+ {[%emt 0:01:30]} 24. Ke2 {[%emt 0:04:30]} Qxh1 {[%emt 0:00:30]} 25. Kd2 {[%emt 0:03:30]} g5 {[%emt 0:04:30]} 26. Bg3 {[%emt 0:02:47]} f5 {[%emt 0:01:30]} 27. Rxe7 {[%emt 0:00:06]} f4 {[%emt 0:00:30]} 28. Qxd6+ {[%emt 0:00:30]} Ka7 {[%emt 0:00:00]} 29. Qc5+ {[%emt 0:00:11]} b6 {[%emt 0:00:00]} 30. Rxd7+ {[%emt 0:00:30]} Bb7 {[%emt 0:00:00]} 31. Rxb7+ {[%emt 0:00:00]} Kxb7 {[%emt 0:00:00]} 32. Qc6+ {[%emt 0:00:00]} Kb8 {[%emt 0:00:00]} 33. Qd6+ {[%emt 0:00:00]} Kc8 {[%emt 0:00:00]} 34. Bd7+ {[%emt 0:00:26]} Kd8 {[%emt 0:00:30]} 35. Be6# {[%emt 0:00:00]} 1-0